fUST/lending_fUST_20241127
["ID","MTS","AMOUNT","RATE_DAILY","PERIOD"]
[343472309,1732648238183,-343.79,0.00027397,3]
[343472312,1732648238193,-500.0,0.00027397,3]
[343472313,1732648238203,-500.0,0.00027397,3]
[343472315,1732648238212,-500.0,0.00027397,3]
[343472317,1732648238222,-500.0,0.00027397,3]
[343472319,1732648238231,-500.0,0.00027397,3]
[343472321,1732648238241,-500.0,0.00027397,3]
[343472323,1732648238251,-500.0,0.00027397,3]
[343472325,1732648238260,-500.0,0.00027397,3]
[343472327,1732648238270,-500.0,0.00027397,3]
[343472329,1732648238279,-500.0,0.00027397,3]
[343472331,1732648238289,-500.0,0.00027397,3]
[343472333,1732648238298,-500.0,0.00027397,3]
[343472335,1732648238308,-500.0,0.00027397,3]
[343472337,1732648238318,-500.0,0.00027397,3]
[343472339,1732648238328,-500.0,0.00027397,3]
[343472341,1732648238337,-500.0,0.000274,5]
[343472343,1732648238347,-500.0,0.000274,5]
[343472345,1732648238359,-500.0,0.000274,5]
[343472347,1732648238369,-500.94417117,0.000274,5]
[343472350,1732648238379,-187.87721885,0.000274,5]
[343472351,1732648238388,-158.56464448,0.000274,5]
[343472353,1732648238398,-500.0,0.000274,5]
[343472355,1732648238408,-1000.0,0.00027948,5]
[343472357,1732648238418,-300.08304192,0.00028257,3]
[343472359,1732648238427,-1253.2974413,0.00028257,3]
[343472363,1732648238451,-490.2625587,0.00028257,3]
[343472365,1732648238461,-500.0,0.00028257,3]
[343472367,1732648238470,-500.0,0.00028258,2]
[343472369,1732648238481,-324.41381404,0.00028258,2]
[343472371,1732648238490,-420.0,0.00028376,2]
[343472373,1732648238500,-151.0,0.0002853,7]
[343472375,1732648238509,-312.10267297,0.00028579,2]
[343472377,1732648238519,-500.0,0.00028708,3]
[343472379,1732648238528,-500.0,0.00028708,3]
[343472381,1732648238537,-2430.55,0.00028708,3]
[343472383,1732648238547,-493.26,0.00028708,3]
[343472385,1732648238557,-500.0,0.00028708,3]
[343472387,1732648238566,-500.0,0.00028709,3]
[343472389,1732648238578,-500.0,0.00028709,3]
[343472391,1732648238587,-500.0,0.00028709,3]
[343472392,1732648238597,-500.0,0.00028709,3]
[343472394,1732648238610,-500.0,0.00028709,3]
[343472395,1732648238620,-151.0,0.00028737,7]
[343472397,1732648238629,-361.2,0.00028757,3]
[343472400,1732648238638,-500.0,0.00028767,4]
[343472402,1732648238648,-420.0,0.00028848,2]
[343472404,1732648238657,-151.0,0.00028945,7]
[343472406,1732648238667,-153.0,0.00028959,30]
[343472408,1732648238676,-151.0,0.00029153,7]
[343472410,1732648238685,-153.82,0.000293,31]
[343472412,1732648238695,-153.82,0.000293,31]
[343472414,1732648238705,-153.82,0.000293,31]
[343472416,1732648238715,-153.82,0.000293,31]
[343472418,1732648238724,-153.82,0.000293,31]
[343472420,1732648238734,-153.82,0.000293,31]
[343472422,1732648238744,-153.82,0.000293,31]
[343472424,1732648238754,-153.82,0.000293,31]
[343472426,1732648238764,-153.82,0.000293,31]
[343472428,1732648238774,-153.82,0.000293,31]
[343472430,1732648238783,-1743.56,0.00029326,3]
[343472432,1732648238792,-500.0,0.00029326,3]
[343472434,1732648238802,-266.679772,0.00029335,2]
[343472436,1732648238812,-172.596213,0.00029335,2]
[343472437,1732648238824,-163.592183,0.00029349,2]
[343472439,1732648238834,-151.0,0.00029361,7]
[343472441,1732648238844,-1743.56,0.00029399,3]
[343472443,1732648238855,-500.0,0.00029399,3]
[343472445,1732648238868,-3000.0,0.000294,2]
[343472447,1732648238879,-8271.09594288,0.000294,7]
[343472449,1732648238888,-483.50316313,0.00029408,3]
[343472451,1732648238898,-2430.55,0.00029408,3]
[343472453,1732648238910,-500.0,0.00029408,3]
[343472455,1732648238919,-500.0,0.00029409,3]
[343472457,1732648238928,-514.35690292,0.00029409,3]
[343472459,1732648238937,-500.0,0.00029409,3]
[343472461,1732648238947,-500.0,0.00029409,3]
[343472463,1732648238957,-215.8,0.00029409,3]
[343472465,1732648238966,-3000.0,0.0002941,2]
[343472467,1732648238976,-3000.0,0.0002942,2]
[343472469,1732648238985,-3000.0,0.0002943,2]
[343472471,1732648238996,-3000.0,0.0002944,2]
[343472473,1732648239005,-1743.56,0.00029447,3]
[343472475,1732648239015,-500.0,0.00029447,3]
[343472477,1732648239025,-2430.55,0.00029448,3]
[343472479,1732648239035,-500.0,0.00029448,3]
[343472481,1732648239044,-3000.0,0.0002945,2]
[343472482,1732648239053,-500.0,0.00029459,3]
[343472484,1732648239063,-500.0,0.00029459,3]
[343472486,1732648239073,-500.0,0.00029459,3]
[343472488,1732648239082,-3000.0,0.0002946,2]
[343472490,1732648239093,-9111.53809408,0.00029463,2]
[343472492,1732648239102,-3000.0,0.0002947,2]
[343472494,1732648239117,-150.0,0.00029475,2]
[343472496,1732648239132,-531.0,0.00029475,2]
[343472498,1732648239141,-1105.0,0.00029475,2]
[343472500,1732648239151,-2378.0,0.00029475,2]
[343472502,1732648239161,-1743.56,0.00029478,3]
[343472504,1732648239170,-500.0,0.00029478,3]
[343472506,1732648239179,-2430.55,0.00029479,3]
[343472508,1732648239189,-500.0,0.00029479,3]
[343472510,1732648239199,-3000.0,0.0002948,2]
[343472520,1732648239297,-1268.59599995,0.0002949,2]
[343472523,1732648239311,-464.30479391,0.0002949,2]
[343472959,1732648244935,-1267.09920614,0.0002949,2]
[343472960,1732648244945,-1933.23,0.000295,2]
[343472961,1732648244955,-3000.0,0.000295,2]
[343472962,1732648244965,-300.0,0.000295,14]
[343472963,1732648244976,-2430.55,0.00029504,3]
[343472964,1732648244986,-500.0,0.00029504,3]
[343472965,1732648244995,-500.0,0.00029509,3]
[343472966,1732648245006,-500.0,0.00029509,3]
[343472967,1732648245015,-500.0,0.00029509,3]
[343472968,1732648245025,-1743.56,0.00029509,3]
[343472969,1732648245035,-500.0,0.00029509,3]
[343472970,1732648245046,-2612.76079372,0.0002951,2]
[343472971,1732648245058,-1351.17942028,0.0002951,2]
[343472972,1732648245068,-151.0,0.00029568,7]
[343472973,1732648245078,-1334.58,0.00029661,10]
[343472974,1732648245087,-2430.55,0.00029669,3]
[343472975,1732648245098,-2430.55,0.00029669,3]
[343472976,1732648245107,-2430.55,0.00029669,3]
[343472977,1732648245119,-500.0,0.00029669,3]
[343472978,1732648245128,-500.0,0.00029669,3]
[343472979,1732648245138,-500.0,0.00029669,3]
[343472980,1732648245148,-1743.56,0.00029669,3]
[343472981,1732648245157,-1743.56,0.00029669,3]
[343472982,1732648245167,-1743.56,0.00029669,3]
[343472983,1732648245177,-500.0,0.00029669,3]
[343472984,1732648245186,-500.0,0.00029669,3]
[343472985,1732648245196,-500.0,0.00029669,3]
[343472986,1732648245206,-500.0,0.0002967,3]
[343472987,1732648245215,-416.05637727,0.0002967,3]
[343472988,1732648245224,-2430.55,0.0002967,3]
[343472989,1732648245234,-2430.55,0.0002967,3]
[343472990,1732648245243,-2430.55,0.0002967,3]
[343472991,1732648245253,-2430.55,0.0002967,3]
[343472992,1732648245262,-2430.55,0.0002967,3]
[343472993,1732648245272,-2430.55,0.0002967,3]
[343472994,1732648245282,-2430.55,0.0002967,3]
[343472995,1732648245291,-2430.55,0.0002967,3]
[343472996,1732648245301,-2430.55,0.0002967,3]
[343472997,1732648245311,-2430.55,0.0002967,3]
[343472998,1732648245320,-2430.55,0.0002967,3]
[343472999,1732648245330,-444.99805508,0.0002967,3]
[343473009,1732648246125,-500.0,0.00027397,2]
[343473010,1732648246136,-1985.55194492,0.0002967,3]
[343473011,1732648246145,-2430.75,0.0002967,3]
[343473012,1732648246155,-500.0,0.0002967,3]
[343473013,1732648246165,-500.0,0.0002967,3]
[343473014,1732648246175,-500.0,0.0002967,3]
[343473015,1732648246186,-500.0,0.0002967,3]
[343473016,1732648246196,-500.0,0.0002967,3]
[343473017,1732648246206,-500.0,0.0002967,3]
[343473018,1732648246217,-500.0,0.0002967,3]
[343473020,1732648246226,-500.0,0.0002967,3]
[343473021,1732648246236,-198.13,0.0002967,3]
[343473022,1732648246246,-500.0,0.0002967,3]
[343473023,1732648246256,-500.0,0.0002967,3]
[343473024,1732648246266,-500.0,0.0002967,3]
[343473025,1732648246275,-500.0,0.0002967,3]
[343473026,1732648246285,-483.64,0.0002967,3]
[343473027,1732648246295,-500.0,0.0002967,3]
[343473028,1732648246305,-500.0,0.0002967,3]
[343473029,1732648246314,-500.0,0.0002967,3]
[343473030,1732648246324,-294.3,0.0002967,3]
[343473031,1732648246334,-1743.56,0.0002967,3]
[343473032,1732648246344,-1743.56,0.0002967,3]
[343473033,1732648246354,-1551.50805508,0.0002967,3]
[343473034,1732648246370,-192.05194492,0.0002967,3]
[343473035,1732648246384,-1743.56,0.0002967,3]
[343473036,1732648246394,-1743.56,0.0002967,3]
[343473037,1732648246403,-1743.56,0.0002967,3]
[343473038,1732648246413,-1743.56,0.0002967,3]
[343473039,1732648246422,-1743.56,0.0002967,3]
[343473040,1732648246432,-1743.56,0.0002967,3]
[343473041,1732648246441,-1743.68434571,0.0002967,3]
[343473042,1732648246451,-500.0,0.0002967,3]
[343473043,1732648246461,-500.0,0.0002967,3]
[343473044,1732648246470,-500.0,0.0002967,3]
[343473045,1732648246480,-500.0,0.0002967,3]
[343473046,1732648246490,-500.0,0.0002967,3]
[343473047,1732648246501,-455.8176647,0.0002967,3]
[343473048,1732648246511,-176.88005057,0.0002967,2]
[343473049,1732648246520,-193.98680314,0.0002967,2]
[343473050,1732648246530,-633.99583962,0.0002967,2]
[343473051,1732648246541,-280.28981753,0.0002967,2]
[343473052,1732648246550,-49011.93353361,0.00029671,2]
[343473053,1732648246576,-1348.99999763,0.00029671,2]
[343473055,1732648496810,162.951983,0.00013973,2]
[343473088,1732649229147,-5000.0,0.00023729,2]
[343473089,1732649229169,-262.29477499,0.00025034,2]
[343473090,1732649240148,-2792.39463147,0.00023492,2]
[343473091,1732649241706,162.910926,0.00013973,2]
[343473092,1732649253143,-537.67518764,0.00023492,2]
[343473094,1732649291843,2456.52175885,0.0002,2]
[343473100,1732649345667,-348.09735276,0.0002201,16]
[343473147,1732649435667,-184.52659343,0.0002201,16]
[343473148,1732649435677,-1637.83880346,0.0002277,2]
[343473149,1732649435687,-862.218869,0.00023,2]
[343473150,1732649435698,-196.38832391,0.000249,2]
[343473151,1732649435710,-300.0,0.00024999,2]
[343473152,1732649435720,-300.0,0.00024999,2]
[343473153,1732649435730,-931.0,0.00024999,2]
[343473154,1732649435739,-36315.52870564,0.00025,30]
[343473155,1732649435749,-16589.34538464,0.00025,2]
[343473156,1732649435758,-9224.0,0.00025,2]
[343473157,1732649435768,-2179.80484671,0.00025034,2]
[343473158,1732649435778,-215.873876,0.00025056,2]
[343473159,1732649435789,-2842.66469892,0.0002509,2]
[343473160,1732649435799,-327.382799,0.00025127,2]
[343473161,1732649435809,-167.834019,0.00025209,2]
[343473162,1732649435818,-423.0757369,0.00025299,2]
[343473163,1732649435828,-215.873876,0.0002574,2]
[343473164,1732649435838,-205.199,0.00026267,12]
[343473165,1732649435850,-24900.0,0.00026268,2]
[343473166,1732649435860,-215.873876,0.00026425,2]
[343473167,1732649435871,-458.0,0.00027,2]
[343473168,1732649435882,-420.0,0.00027082,2]
[343473169,1732649435892,-167.405134,0.00027376,2]
[343473170,1732649435902,-1112.15,0.00027377,10]
[343473171,1732649435911,-1334.58,0.00027387,10]
[343473172,1732649435921,-500.0,0.00027397,3]
[343473173,1732649435932,-500.0,0.00027397,3]
[343473174,1732649435941,-500.0,0.00027397,3]
[343473175,1732649435951,-243.88,0.00027397,3]
[343473176,1732649435967,-447.5884393,0.00027397,3]
[343473177,1732649435977,-175.67718325,0.00027397,3]
[343473178,1732649435987,-500.0,0.00027397,3]
[343473179,1732649435996,-500.0,0.00027397,3]
[343473180,1732649436006,-500.0,0.00027397,3]
[343473181,1732649436016,-624.61848251,0.00027397,3]
[343473182,1732649436025,-500.0,0.00027397,3]
[343473183,1732649436034,-500.0,0.00027397,3]
[343473184,1732649436044,-500.0,0.00027397,3]
[343473185,1732649436054,-500.0,0.00027397,3]
[343473186,1732649436063,-500.0,0.00027397,3]
[343473187,1732649436075,-500.0,0.00027397,3]
[343473188,1732649436085,-500.0,0.00027397,3]
[343473189,1732649436095,-500.0,0.00027397,3]
[343473190,1732649436106,-500.0,0.00027397,3]
[343473191,1732649436115,-500.0,0.00027397,3]
[343473192,1732649436126,-234.32024521,0.00027397,3]
[343473193,1732649436137,-500.0,0.00027397,3]
[343473194,1732649436148,-309.37070282,0.00027397,3]
[343473195,1732649436159,-487.24713103,0.00027397,3]
[343473196,1732649436172,-500.0,0.00027397,3]
[343473197,1732649436182,-500.0,0.00027397,3]
[343473198,1732649436192,-500.0,0.00027397,3]
[343473199,1732649436203,-500.0,0.00027397,3]
[343473200,1732649436217,-500.0,0.00027397,3]
[343473201,1732649436226,-500.0,0.00027397,3]
[343473202,1732649436348,-500.0,0.00027397,3]
[343473203,1732649436360,-500.0,0.00027397,3]
[343473204,1732649436370,-500.0,0.00027397,3]
[343473205,1732649436382,-500.0,0.00027397,3]
[343473206,1732649436392,-500.0,0.00027397,3]
[343473207,1732649436403,-500.0,0.00027397,3]
[343473208,1732649436414,-500.0,0.00027397,3]
[343473209,1732649436424,-500.0,0.00027397,3]
[343473210,1732649436435,-500.0,0.00027397,3]
[343473211,1732649436444,-160.88,0.00027397,3]
[343473212,1732649436454,-500.0,0.00027397,3]
[343473213,1732649436468,-500.0,0.00027397,3]
[343473214,1732649436479,-500.0,0.00027397,3]
[343473215,1732649436491,-500.0,0.00027397,3]
[343473216,1732649436500,-500.0,0.00027397,3]
[343473217,1732649436509,-374.06029352,0.00027397,3]
[343473218,1732649436519,-500.0,0.00027397,3]
[343473219,1732649436530,-500.0,0.00027397,3]
[343473220,1732649436540,-500.0,0.00027397,3]
[343473221,1732649436550,-500.0,0.00027397,3]
[343473222,1732649436560,-500.0,0.00027397,3]
[343473223,1732649436570,-500.0,0.00027397,3]
[343473224,1732649436582,-500.0,0.00027397,3]
[343473225,1732649436593,-500.0,0.00027397,3]
[343473226,1732649436603,-412.20000921,0.00027397,3]
[343473227,1732649436613,-500.0,0.00027397,3]
[343473228,1732649436623,-500.0,0.00027397,3]
[343473229,1732649436635,-330.0,0.00027397,3]
[343473230,1732649436645,-500.0,0.00027397,3]
[343473231,1732649436654,-443.07805263,0.00027397,3]
[343473232,1732649436663,-500.0,0.00027397,3]
[343473233,1732649436673,-500.0,0.00027397,3]
[343473234,1732649436683,-500.0,0.00027397,3]
[343473235,1732649436693,-500.0,0.00027397,3]
[343473236,1732649436703,-500.0,0.00027397,3]
[343473237,1732649436715,-500.0,0.00027397,3]
[343473238,1732649436725,-278.8,0.00027397,3]
[343473239,1732649436734,-500.0,0.00027397,3]
[343473240,1732649436744,-500.0,0.00027397,3]
[343473241,1732649436754,-500.0,0.00027397,3]
[343473242,1732649436763,-500.0,0.00027397,3]
[343473243,1732649436774,-500.0,0.00027397,3]
[343473244,1732649436783,-500.0,0.00027397,3]
[343473245,1732649436793,-500.0,0.00027397,3]
[343473246,1732649436802,-500.0,0.00027397,3]
[343473247,1732649436812,-527.4,0.00027397,3]
[343473248,1732649436822,-500.0,0.00027397,3]
[343473249,1732649436831,-500.0,0.00027397,3]
[343473250,1732649436841,-500.0,0.00027397,3]
[343473251,1732649436850,-500.0,0.00027397,3]
[343473252,1732649436860,-606.45,0.00027397,3]
[343473253,1732649436869,-606.45,0.00027397,3]
[343473254,1732649436880,-606.45,0.00027397,3]
[343473255,1732649436890,-569.6,0.00027397,3]
[343473256,1732649436899,-569.6,0.00027397,3]
[343473257,1732649436909,-569.6,0.00027397,3]
[343473258,1732649436918,-500.0,0.00027397,3]
[343473259,1732649436928,-225.07977592,0.00027397,3]
[343473260,1732649436937,-500.0,0.00027397,3]
[343473261,1732649436949,-500.0,0.00027397,3]
[343473262,1732649436960,-500.0,0.00027397,3]
[343473263,1732649436970,-500.0,0.00027397,3]
[343473264,1732649436979,-497.86197118,0.000274,5]
[343473265,1732649436989,-247.43610674,0.000274,5]
[343473266,1732649436998,-420.0,0.00027499,2]
[343473267,1732649437007,-553.97095021,0.00027653,2]
[343473268,1732649437017,-544.07048006,0.00028,2]
[343473269,1732649437026,-641.26,0.00028418,3]
[343473270,1732649437036,-170.12,0.00028418,3]
[343473271,1732649437045,-606.45,0.00028418,3]
[343473272,1732649437055,-569.6,0.00028418,3]
[343473273,1732649437065,-587.0,0.00029339,2]
[343473274,1732649437074,-153.83,0.000294,31]
[343473275,1732649437083,-153.83,0.000294,31]
[343473276,1732649437092,-153.83,0.000294,31]
[343473277,1732649437102,-153.83,0.000294,31]
[343473278,1732649437112,-153.83,0.000294,31]
[343473279,1732649437121,-153.83,0.000294,31]
[343473280,1732649437131,-153.83,0.000294,31]
[343473281,1732649437140,-153.83,0.000294,31]
[343473282,1732649437150,-153.83,0.000294,31]
[343473283,1732649437161,-7443.98634859,0.000294,7]
[343473284,1732649437176,-150.0,0.00029487,2]
[343473285,1732649437187,-2378.0,0.00029487,2]
[343473286,1732649437199,-1739.91,0.000295,2]
[343473287,1732649437212,-500.0,0.0002956,3]
[343473288,1732649437222,-500.0,0.00029569,3]
[343473289,1732649437231,-644.2,0.00029569,3]
[343473290,1732649437241,-500.0,0.00029569,3]
[343473291,1732649437251,-500.0,0.00029569,3]
[343473292,1732649437262,-606.45,0.00029569,3]
[343473293,1732649437271,-569.6,0.00029569,3]
[343473294,1732649437281,-500.0,0.00029569,3]
[343473295,1732649437290,-500.0,0.0002957,3]
[343473296,1732649437300,-373.97350276,0.0002957,3]
[343473297,1732649437310,-500.0,0.0002957,3]
[343473298,1732649437320,-500.0,0.0002957,3]
[343473299,1732649437330,-500.0,0.0002957,3]
[343473300,1732649437339,-500.0,0.0002957,3]
[343473301,1732649437349,-500.0,0.0002957,3]
[343473302,1732649437359,-500.0,0.0002957,3]
[343473303,1732649437369,-500.49291095,0.0002957,3]
[343473304,1732649437379,-500.0,0.0002957,3]
[343473305,1732649437390,-500.0,0.0002957,3]
[343473306,1732649437400,-500.0,0.0002957,3]
[343473307,1732649437411,-500.0,0.0002957,3]
[343473308,1732649437421,-500.0,0.0002957,3]
[343473309,1732649437432,-412.5,0.0002957,3]
[343473310,1732649437442,-606.45,0.0002957,3]
[343473311,1732649437451,-606.45,0.0002957,3]
[343473312,1732649437466,-606.45,0.0002957,3]
[343473313,1732649437475,-606.45,0.0002957,3]
[343473314,1732649437485,-606.45,0.0002957,3]
[343473315,1732649437494,-606.45,0.0002957,3]
[343473316,1732649437503,-606.45,0.0002957,3]
[343473317,1732649437512,-606.45,0.0002957,3]
[343473318,1732649437522,-606.45,0.0002957,3]
[343473319,1732649437531,-606.45,0.0002957,3]
[343473320,1732649437540,-606.45,0.0002957,3]
[343473321,1732649437550,-569.6,0.0002957,3]
[343473322,1732649437559,-569.6,0.0002957,3]
[343473323,1732649437568,-569.6,0.0002957,3]
[343473324,1732649437578,-569.6,0.0002957,3]
[343473325,1732649437587,-569.6,0.0002957,3]
[343473326,1732649437597,-569.6,0.0002957,3]
[343473327,1732649437607,-569.6,0.0002957,3]
[343473328,1732649437616,-569.6,0.0002957,3]
[343473329,1732649437626,-569.6,0.0002957,3]
[343473330,1732649437635,-569.6,0.0002957,3]
[343473331,1732649437645,-569.6,0.0002957,3]
[343473332,1732649437655,-159.86,0.0002957,3]
[343473334,1732649437666,-196.20287228,0.0002957,2]
[343473335,1732649437675,-443.79708773,0.0002957,2]
[343473336,1732649437686,-222000.0,0.00029571,2]
[343473337,1732649437697,-1522.00082308,0.00029571,2]
[343473338,1732649437707,-6928.95981997,0.00029638,7]
[343473339,1732649437719,-151.13346581,0.00029673,5]
[343473340,1732649437729,-364.51005726,0.00029673,5]
[343473341,1732649437739,-834.10787596,0.00029675,2]
[343473342,1732649437748,-606.45,0.00029678,3]
[343473343,1732649437758,-569.6,0.00029678,3]
[343473344,1732649437767,-4719.223,0.00029679,2]
[343473345,1732649437777,-834.10787592,0.00029681,2]
[343473346,1732649437787,-834.10787592,0.00029687,2]
[343473349,1732649437796,-151.0,0.00029689,2]
[343473350,1732649437807,-834.10787592,0.00029692,2]
[343473351,1732649437816,-657.46849881,0.00029694,2]
[343473352,1732649437826,-834.10787592,0.00029698,2]
[343473353,1732649437835,-736.04274566,0.00029699,2]
[343473354,1732649437846,-1009.10568643,0.00029699,3]
[343473355,1732649437856,-186.0,0.000297,2]
[343473356,1732649437866,-151.0,0.000297,11]
[343473357,1732649437876,-298.448932,0.000297,13]
[343473358,1732649437887,-80382.31622342,0.000297,120]
[343473359,1732649437897,-266.679772,0.00029702,2]
[343473360,1732649437907,-500.0,0.00029773,5]
[343473361,1732649437918,-500.0,0.00029773,11]
[343473363,1732649437928,-500.0,0.00029773,11]
[343473365,1732649437937,-150.01,0.00029775,2]
[343473366,1732649437947,-4808.46037263,0.00029775,2]
[343473367,1732649437957,-151.0,0.00029775,7]
[343473368,1732649437971,-151.0,0.00029775,7]
[343473369,1732649437983,-151.0,0.00029775,7]
[343473370,1732649437993,-153.800131,0.00029775,7]
[343473371,1732649438002,-151.0,0.00029775,7]
[343473372,1732649438011,-151.0,0.00029775,7]
[343473373,1732649438021,-151.0,0.00029775,7]
[343473374,1732649438030,-151.0,0.00029775,7]
[343473375,1732649438039,-151.0,0.00029775,7]
[343473376,1732649438048,-151.0,0.00029775,7]
[343473377,1732649438057,-183.464853,0.00029775,7]
[343473378,1732649438066,-151.0,0.00029776,7]
[343473379,1732649438076,-150.14,0.00029788,10]
[343473380,1732649438085,-199.7,0.00029788,10]
[343473381,1732649438094,-150.14,0.00029788,10]
[343473382,1732649438104,-150.14,0.00029788,10]
[343473383,1732649438113,-500.0,0.00029788,10]
[343473384,1732649438123,-150.14,0.00029788,10]
[343473385,1732649438132,-150.14,0.00029788,2]
[343473386,1732649438143,-606.45,0.00029792,3]
[343473387,1732649438152,-569.6,0.00029792,3]
[343473388,1732649438166,-606.45,0.00029793,3]
[343473389,1732649438175,-606.45,0.00029793,3]
[343473390,1732649438184,-606.45,0.00029793,3]
[343473392,1732649438194,-606.45,0.00029793,3]
[343473394,1732649438204,-606.45,0.00029793,3]
[343473395,1732649438216,-606.57,0.00029793,3]
[343473396,1732649438225,-569.6,0.00029793,3]
[343473398,1732649438235,-569.6,0.00029793,3]
[343473400,1732649438244,-569.6,0.00029793,3]
[343473402,1732649438254,-569.6,0.00029793,3]
[343473404,1732649438263,-569.6,0.00029793,3]
[343473406,1732649438272,-569.76,0.00029793,3]
[343473408,1732649438283,-151.0,0.00029794,7]
[343473410,1732649438293,-151.0,0.00029794,7]
[343473412,1732649438302,-151.0,0.00029794,7]
[343473414,1732649438311,-151.0,0.00029794,7]
[343473416,1732649438321,-151.0,0.00029794,7]
[343473418,1732649438330,-151.0,0.00029794,7]
[343473420,1732649438340,-151.0,0.00029794,7]
[343473422,1732649438349,-151.0,0.00029794,7]
[343473424,1732649438359,-151.0,0.00029794,7]
[343473426,1732649438369,-151.0,0.00029794,7]
[343473428,1732649438379,-151.0,0.00029794,7]
[343473430,1732649438389,-151.0,0.00029794,7]
[343473432,1732649438398,-151.0,0.00029794,7]
[343473434,1732649438408,-151.0,0.00029794,7]
[343473436,1732649438417,-151.0,0.00029794,7]
[343473438,1732649438427,-151.0,0.00029794,7]
[343473440,1732649438436,-151.0,0.00029794,7]
[343473442,1732649438445,-151.0,0.00029794,7]
[343473444,1732649438454,-151.0,0.00029794,7]
[343473445,1732649438467,-151.0,0.00029794,7]
[343473447,1732649438477,-151.0,0.00029794,7]
[343473449,1732649438486,-151.0,0.00029794,7]
[343473451,1732649438496,-151.0,0.00029794,7]
[343473453,1732649438506,-226.717084,0.00029794,7]
[343473455,1732649438515,-151.0,0.00029794,7]
[343473457,1732649438525,-151.0,0.00029794,7]
[343473459,1732649438534,-151.0,0.00029794,7]
[343473461,1732649438543,-151.0,0.00029794,7]
[343473463,1732649438553,-151.0,0.00029794,7]
[343473465,1732649438563,-151.0,0.00029794,7]
[343473467,1732649438572,-151.0,0.00029794,7]
[343473469,1732649438582,-151.0,0.00029794,7]
[343473471,1732649438592,-151.0,0.00029794,7]
[343473473,1732649438601,-267.502774,0.00029794,7]
[343473475,1732649438611,-262.767624,0.00029794,7]
[343473477,1732649438620,-151.0,0.00029794,7]
[343473479,1732649438630,-151.0,0.00029794,7]
[343473481,1732649438640,-249.629065,0.00029794,7]
[343473484,1732649438649,-151.0,0.00029794,7]
[343473486,1732649438659,-151.0,0.00029794,7]
[343473488,1732649438669,-151.0,0.00029794,7]
[343473490,1732649438678,-151.0,0.00029794,7]
[343473493,1732649438689,-151.0,0.00029794,7]
[343473494,1732649438699,-151.0,0.00029794,7]
[343473496,1732649438708,-151.0,0.00029794,7]
[343473498,1732649438719,-151.0,0.00029794,7]
[343473500,1732649438728,-151.0,0.00029794,7]
[343473502,1732649438738,-151.0,0.00029794,7]
[343473504,1732649438747,-151.0,0.00029794,7]
[343473506,1732649438756,-151.0,0.00029794,7]
[343473508,1732649438766,-151.0,0.00029794,7]
[343473510,1732649438776,-151.0,0.00029794,7]
[343473512,1732649438785,-151.0,0.00029794,7]
[343473514,1732649438795,-151.0,0.00029794,7]
[343473516,1732649438804,-151.0,0.00029794,7]